bitfinex-derivatives/quotes_BNBF0:USTF0_20250630
["timestamp","ask_amount","ask_price","bid_price","bid_amount"]
[1751279807466,1.06264483,652.41,651.92,1.455]
[1751279807766,1.06264483,652.4,651.92,1.455]
[1751279808066,1.06264483,652.39,651.93,1.203]
[1751279808271,1.34596693,652.57,651.93,1.203]
[1751279808469,2.40878888,652.56,651.94,1.287]
[1751279808771,2.40878888,652.55,651.94,1.287]
[1751279808964,2.40878888,652.54,651.94,1.287]
[1751279809170,2.40878888,652.53,651.94,1.287]
[1751279809467,2.40878888,652.52,651.94,1.287]
[1751279809671,2.40878888,652.51,651.94,1.287]
[1751279809869,1.14394002,652.57,651.94,1.287]
[1751279809870,2.40878888,652.5,651.94,1.287]
[1751279810067,2.40878888,652.49,651.94,1.287]
[1751279810271,1.06282195,652.48,651.94,1.287]
[1751279810470,1.06282195,652.47,651.94,1.287]
[1751279810766,1.06282195,652.46,651.94,1.287]
[1751279810968,1.06282195,652.45,651.94,1.287]
[1751279811267,1.06282195,652.44,651.95,1.503]
[1751279811468,1.06282195,652.43,651.95,1.503]
[1751279811671,1.06282195,652.42,651.95,1.503]
[1751279811872,1.34620794,652.56,651.95,1.503]
[1751279812075,2.4091034,652.55,651.95,1.503]
[1751279812267,1.06289546,652.54,651.96,1.534]
[1751279812568,1.06289546,652.53,651.96,1.534]
[1751279812872,1.06289546,652.52,651.96,1.534]
[1751279813167,1.06289546,652.51,651.96,1.534]
[1751279813372,1.06289546,652.5,651.96,1.534]
[1751279813572,1.06289546,652.49,651.96,1.534]
[1751279813775,1.06289546,652.48,651.96,1.534]
[1751279813975,1.06289546,652.47,651.96,1.534]
[1751279814270,1.06289546,652.46,651.96,1.534]
[1751279814471,1.06289546,652.45,651.96,1.534]
[1751279814667,1.06289546,652.44,651.96,1.534]
[1751279814872,1.14394002,652.57,651.97,1.273]
[1751279815172,2.40968956,652.56,651.97,1.273]
[1751279815368,2.40968956,652.55,651.97,1.273]
[1751279815673,2.40981017,652.54,651.97,1.273]
[1751279815869,1.06315407,652.53,651.97,1.273]
[1751279816069,1.06315407,652.52,651.97,1.273]
[1751279816276,1.06315407,652.51,651.98,1.507]
[1751279816475,1.06315407,652.5,651.98,1.507]
[1751279816775,1.06315407,652.49,651.98,1.507]
[1751279816973,1.06315407,652.48,651.98,1.507]
[1751279817173,1.06315407,652.47,651.98,1.507]
[1751279817375,1.06315407,652.46,651.98,1.507]
[1751279817575,1.06315407,652.45,651.98,1.507]
[1751279817877,1.06315407,652.44,651.98,1.507]
[1751279818081,1.06315407,652.43,651.98,1.507]
[1751279818276,1.06315407,652.42,651.98,1.507]
[1751279818481,1.14394002,652.55,651.98,1.507]
[1751279818682,2.41070161,652.54,651.98,1.507]
[1751279818979,2.41070161,652.53,651.98,1.507]
[1751279819181,1.06360059,652.52,651.98,1.507]
[1751279819383,1.06360059,652.51,651.98,1.507]
[1751279819676,1.06360059,652.5,651.98,1.507]
[1751279819877,1.06360059,652.49,651.98,1.507]
[1751279820074,1.06360059,652.48,651.98,1.507]
[1751279820282,1.06360059,652.47,651.98,1.507]
[1751279820476,1.06360059,652.46,651.98,1.507]
[1751279820778,1.06360059,652.45,651.98,1.507]
[1751279820982,1.06360059,652.44,651.98,1.507]
[1751279821177,1.06360059,652.43,651.98,1.507]
[1751279821383,1.06360059,652.42,651.98,1.507]
[1751279821684,1.34727916,652.53,651.98,1.507]
[1751279821878,2.41133717,652.52,651.98,1.507]
[1751279822079,2.41133717,652.51,651.98,1.507]
[1751279822279,2.41133717,652.5,651.98,1.507]
[1751279822481,2.41133717,652.49,651.98,1.507]
[1751279822682,2.41133717,652.48,651.98,1.507]
[1751279822980,2.41133717,652.47,651.98,1.507]
[1751279823184,1.06388104,652.46,651.98,1.507]
[1751279823384,1.06388104,652.45,651.98,1.507]
[1751279823582,1.06388104,652.44,651.99,0.63]
[1751279823780,1.06388104,652.43,651.99,0.63]
[1751279824081,1.06388104,652.42,652.0,1.118]
[1751279824281,1.06388104,652.41,652.0,1.118]
[1751279824483,1.06388104,652.4,652.0,1.118]
[1751279824682,1.06388104,652.39,652.0,1.118]
[1751279824880,1.06388104,652.38,652.0,1.118]
[1751279825080,1.06388104,652.37,652.0,1.118]
[1751279825384,1.06388104,652.36,652.0,1.118]
[1751279825580,1.06388104,652.35,652.0,1.118]
[1751279825783,1.14394002,652.55,652.0,1.118]
[1751279825982,2.4125132,652.54,652.0,1.118]
[1751279826182,2.4125132,652.53,652.0,1.118]
[1751279826383,2.4125132,652.52,652.0,1.118]
[1751279826584,2.4125132,652.51,652.0,1.118]
[1751279826882,2.4125132,652.5,652.0,1.118]
[1751279827186,2.4125132,652.49,652.0,1.118]
[1751279827389,2.4125132,652.48,652.0,1.118]
[1751279827582,2.4125132,652.47,652.0,1.118]
[1751279827787,2.4125132,652.46,652.0,1.118]
[1751279827983,1.06439986,652.45,652.0,1.118]
[1751279828182,1.06439986,652.44,652.0,1.118]
[1751279828483,1.06439986,652.43,652.0,1.118]
[1751279828686,1.06439986,652.42,652.0,1.118]
[1751279828886,1.06439986,652.41,652.0,1.118]
[1751279829187,1.06439986,652.4,652.0,1.118]
[1751279829383,1.06439986,652.39,652.0,1.118]
[1751279829588,1.06439986,652.38,652.0,1.118]
[1751279829783,1.06439986,652.37,652.0,1.118]
[1751279829987,1.06439986,652.36,652.0,1.118]
[1751279830187,1.06439986,652.35,652.0,1.118]
[1751279830389,1.06439986,652.34,652.0,1.118]
[1751279830585,1.06439986,652.33,652.0,1.118]
[1751279830784,1.14394002,652.52,652.0,1.118]
[1751279830984,2.41444397,652.51,652.0,1.118]
[1751279831188,1.34918603,652.5,652.0,1.118]
[1751279831385,1.34918603,652.49,652.0,1.118]
[1751279831587,1.34918603,652.48,652.0,1.118]
[1751279831789,1.34918603,652.47,652.0,1.118]
[1751279832090,1.34918603,652.46,652.0,1.118]
[1751279832290,1.34918603,652.45,652.0,1.118]
[1751279832491,1.34918603,652.44,652.0,1.118]
[1751279832686,1.34918603,652.43,652.0,1.118]
[1751279832890,1.34986223,652.42,652.0,1.118]
[1751279833092,1.14394002,652.5,652.0,1.118]
[1751279833287,2.49449765,652.49,652.0,1.118]
[1751279833490,1.35055763,652.48,652.0,1.118]
[1751279833693,1.35055763,652.48,652.01,1.291]
[1751279834090,1.14394002,652.5,652.01,1.291]
[1751279834594,1.14394002,652.48,652.01,1.291]
[1751279835289,1.14394002,652.47,652.01,1.291]
[1751279835493,1.52602091,652.66,652.01,1.291]
[1751279835494,2.49451351,652.46,652.01,1.291]
[1751279835694,2.41604933,652.45,652.01,1.291]
[1751279835890,2.41604933,652.44,652.01,1.291]
[1751279836095,2.41604933,652.43,652.01,1.291]
[1751279836294,2.41604933,652.42,652.01,1.291]
[1751279836495,2.41604933,652.41,652.01,1.291]
[1751279836691,2.41604933,652.4,652.01,1.291]
[1751279836994,1.06547584,652.39,652.01,1.291]
[1751279837194,1.06547584,652.38,652.01,1.291]
[1751279837390,1.06547584,652.37,652.01,1.291]
[1751279837592,2.2757125,652.88,652.01,1.291]
[1751279837593,1.06547584,652.36,652.01,1.291]
[1751279837891,1.06547584,652.35,652.01,1.291]
[1751279838090,1.06547584,652.34,652.01,1.291]
[1751279838294,1.06547584,652.33,652.01,1.291]
[1751279838595,1.06547584,652.32,652.01,1.291]
[1751279838788,1.14394002,652.51,652.01,1.291]
[1751279838993,2.41881626,652.5,652.01,1.291]
[1751279839194,2.41881626,652.49,652.01,1.291]
[1751279839394,2.41881626,652.48,652.01,1.291]
[1751279839595,2.41881626,652.47,652.01,1.291]
[1751279839796,2.41881626,652.46,652.01,1.291]
[1751279839992,1.0676479,652.45,652.01,1.291]
[1751279840294,1.0676479,652.44,652.01,1.291]
[1751279840498,1.0676479,652.43,652.02,1.558]
[1751279840697,1.0676479,652.42,652.02,1.558]
[1751279840897,1.0676479,652.41,652.02,1.558]
[1751279841094,1.0676479,652.4,652.02,1.558]
[1751279841395,1.0676479,652.39,652.02,1.558]
[1751279841694,1.0676479,652.38,652.02,1.558]
[1751279841900,1.0676479,652.37,652.02,1.558]
[1751279842200,1.0676479,652.36,652.03,1.243]
[1751279842397,1.14394002,652.54,652.03,1.243]
[1751279842697,2.41745347,652.53,652.03,1.243]
[1751279842895,2.41745347,652.52,652.03,1.243]
[1751279843101,2.41744451,652.51,652.03,1.243]
[1751279843296,2.41744451,652.5,652.04,1.534]
[1751279843500,2.41744451,652.49,652.04,2.863]
[1751279843705,2.41730647,652.48,652.05,2.045]
[1751279843905,1.06707652,652.47,652.05,2.045]
[1751279844105,1.06707652,652.46,652.05,2.045]
[1751279844401,1.14394002,652.69,652.1,1.14889326]
[1751279844601,2.41642759,652.68,652.11,1.14889326]
[1751279844802,2.41642759,652.67,652.11,1.14889326]
[1751279845101,2.41642759,652.66,652.08,1.14889326]
[1751279845302,2.41642759,652.65,652.09,1.14889326]
[1751279845601,2.41642759,652.64,652.09,1.14889326]
[1751279845805,1.06660327,652.63,652.13,1.14889326]
[1751279846001,1.06660327,652.62,652.13,1.14889326]
[1751279846205,1.06660327,652.61,652.11,1.14889326]
[1751279846507,1.06660327,652.6,652.14,1.77889326]
[1751279846703,1.06660327,652.59,652.14,1.77889326]
[1751279847005,1.06660327,652.58,652.14,1.77889326]
[1751279847206,1.06660327,652.57,652.14,0.63]
[1751279847402,1.14394002,652.75,652.14,0.63]
[1751279847403,1.06660327,652.56,652.14,0.63]
[1751279847607,1.06660327,652.55,652.14,0.63]
[1751279847806,1.06660327,652.54,652.14,0.63]
[1751279848109,1.14394002,652.76,652.15,1.637]
[1751279848309,2.41372619,652.75,652.15,1.637]
[1751279848508,2.41372619,652.74,652.15,1.637]
[1751279848705,2.41372619,652.73,652.15,1.637]
[1751279849010,2.41372619,652.72,652.15,1.637]
[1751279849209,2.41372619,652.71,652.15,1.637]
[1751279849403,2.41372619,652.7,652.15,1.637]
[1751279849607,2.41372619,652.69,652.15,1.637]
[1751279849805,2.41372619,652.68,652.15,1.637]
[1751279850106,1.06541029,652.67,652.15,1.637]
[1751279850306,1.06541029,652.66,652.15,1.637]
[1751279850508,1.06541029,652.65,652.15,1.637]
[1751279850706,1.06541029,652.64,652.15,1.637]
[1751279850908,1.06541029,652.63,652.15,1.637]
[1751279851109,1.06541029,652.62,652.15,1.637]
[1751279851312,1.06541029,652.61,652.15,1.637]
[1751279851610,1.06541029,652.6,652.15,1.637]
[1751279851806,1.06541029,652.59,652.15,1.637]
[1751279852009,1.34725964,652.78,652.15,1.637]
[1751279852209,2.41183424,652.77,652.15,1.637]
[1751279852411,2.41183424,652.76,652.15,1.637]
[1751279852710,2.41183424,652.75,652.15,1.637]
[1751279852913,2.41183424,652.74,652.15,1.637]
[1751279853111,2.41183424,652.73,652.15,1.637]
[1751279853312,2.41183424,652.72,652.15,1.637]
[1751279853512,1.0645746,652.71,652.15,1.637]
[1751279853713,1.0645746,652.7,652.15,1.637]
[1751279853915,1.0645746,652.69,652.15,1.637]
[1751279854114,1.0645746,652.68,652.15,1.637]
[1751279854314,1.0645746,652.67,652.15,1.637]
[1751279854509,1.0645746,652.66,652.15,1.637]
[1751279854713,1.0645746,652.65,652.15,1.637]
[1751279854910,1.0645746,652.64,652.15,1.637]
[1751279855213,1.0645746,652.63,652.15,1.637]
[1751279855411,1.0645746,652.62,652.15,1.637]
[1751279855713,1.14394002,652.81,652.15,1.637]
[1751279855714,1.0645746,652.61,652.15,1.637]
[1751279855910,1.14394002,652.77,652.15,1.637]
[1751279856113,2.41052335,652.76,652.15,1.637]
[1751279856309,2.41052335,652.75,652.15,1.637]
[1751279856513,2.41052335,652.74,652.15,1.637]
[1751279856716,2.41052335,652.73,652.15,1.637]
[1751279856914,1.06399598,652.72,652.15,1.637]
[1751279857111,1.06399598,652.71,652.15,1.637]
[1751279857314,1.06399598,652.7,652.15,1.637]
[1751279857614,1.06399598,652.69,652.15,1.637]
[1751279857810,1.06399598,652.68,652.15,1.637]
[1751279858016,1.06399598,652.67,652.15,1.637]
[1751279858209,1.06399598,652.66,652.15,1.637]
[1751279858410,1.06399598,652.65,652.16,1.143]
[1751279858614,1.06399598,652.64,652.16,1.143]
[1751279858810,1.06399598,652.63,652.16,1.143]
[1751279859012,1.06399598,652.62,652.16,1.143]
[1751279859212,1.34611143,652.75,652.16,1.143]
[1751279859417,2.40969244,652.74,652.16,1.143]
[1751279859716,2.40969244,652.73,652.16,1.143]
[1751279860015,1.14394002,652.78,652.16,1.143]
[1751279860016,1.06358101,652.72,652.16,1.143]
[1751279860213,1.06358101,652.71,652.16,1.143]
[1751279860414,1.06358101,652.7,652.16,1.143]
[1751279860618,1.06358101,652.69,652.16,1.143]
[1751279860819,1.06358101,652.68,652.16,1.143]
[1751279861019,1.06358101,652.67,652.16,1.143]
[1751279861219,1.52602091,652.93,652.16,1.143]
[1751279861220,1.06358101,652.66,652.16,1.143]
[1751279861520,1.06358101,652.65,652.16,1.143]
[1751279861719,1.06358101,652.64,652.16,1.143]
[1751279861920,1.06358101,652.63,652.16,1.143]
[1751279862116,1.06358101,652.62,652.16,1.143]
[1751279862318,1.06358101,652.61,652.16,1.143]
[1751279862619,1.06358101,652.6,652.16,1.143]
[1751279862817,1.34573833,652.77,652.16,1.143]
[1751279863017,2.40910925,652.76,652.16,1.143]
[1751279863320,1.14394002,652.78,652.16,1.143]
[1751279863321,2.40910925,652.75,652.16,1.143]
[1751279863523,2.40910925,652.74,652.16,1.143]
[1751279863818,2.40910925,652.73,652.16,1.143]
[1751279864020,2.40910925,652.72,652.16,1.143]
[1751279864219,2.40910925,652.71,652.16,1.143]
[1751279864426,1.06337092,652.7,652.16,1.143]
[1751279864624,1.06337092,652.69,652.16,1.143]
[1751279864823,1.06337092,652.68,652.16,1.143]
[1751279865021,1.06337092,652.67,652.16,1.143]
[1751279865223,1.06337092,652.66,652.16,1.143]
[1751279865425,1.06337092,652.65,652.16,1.143]
[1751279865723,1.06337092,652.64,652.17,1.968]
[1751279866027,1.06337092,652.63,652.18,0.63]
[1751279866223,1.06337092,652.62,652.18,0.63]
[1751279866528,1.06337092,652.61,652.18,0.63]
[1751279866722,1.06337092,652.6,652.18,0.63]
[1751279866923,1.06337092,652.59,652.19,1.533]
[1751279867123,1.14394002,652.78,652.19,1.533]
[1751279867322,2.40857001,652.77,652.19,1.533]
[1751279867522,2.40857001,652.76,652.19,1.533]
[1751279867724,2.40857001,652.75,652.19,1.533]
[1751279867925,2.40857001,652.74,652.19,1.533]
[1751279868128,2.40857001,652.73,652.19,1.533]
[1751279868328,2.40857001,652.72,652.19,1.533]
[1751279868624,2.40857001,652.71,652.19,1.533]
[1751279868823,2.40857001,652.7,652.19,1.533]
[1751279869029,3.8123757,653.75,652.19,1.533]
[1751279869030,1.0631911,652.69,652.19,1.533]
[1751279869224,1.0631911,652.68,652.19,1.533]
[1751279869524,1.0631911,652.67,652.19,1.533]
[1751279869723,1.0631911,652.66,652.19,1.533]
[1751279869928,1.0631911,652.65,652.19,1.533]
[1751279870128,1.0631911,652.64,652.19,1.533]
[1751279870427,1.0631911,652.63,652.19,1.533]
[1751279870624,1.0631911,652.62,652.19,1.533]
[1751279870827,1.0631911,652.61,652.19,1.533]
[1751279871127,1.0631911,652.6,652.19,1.533]
[1751279871323,1.0631911,652.59,652.19,1.533]
[1751279871528,1.14394002,652.79,652.19,1.533]
[1751279871726,2.40844501,652.78,652.19,1.533]
[1751279871925,2.40844501,652.77,652.19,1.533]
[1751279872131,2.40844501,652.76,652.19,1.533]
[1751279872429,2.40844501,652.75,652.19,1.533]
[1751279872730,2.40844501,652.74,652.19,1.533]
[1751279873030,2.40844501,652.73,652.19,1.533]
[1751279873225,2.40844501,652.72,652.2,1.622]
[1751279873430,2.40844501,652.71,652.2,3.011]
[1751279873625,2.40844501,652.7,652.2,3.011]
[1751279873826,1.14394002,652.78,652.2,3.011]
[1751279873827,1.06313592,652.69,652.2,3.011]
[1751279874126,1.06313592,652.68,652.2,3.011]
[1751279874327,1.06313592,652.67,652.2,3.011]
[1751279874626,1.06313592,652.66,652.2,3.011]
[1751279874826,1.06313592,652.65,652.2,3.011]
[1751279875027,1.06313592,652.64,652.2,3.011]
[1751279875225,1.06313592,652.63,652.2,3.011]
[1751279875426,1.06313592,652.62,652.2,3.011]
[1751279875726,1.06313592,652.61,652.21,1.698]
[1751279875926,1.06313592,652.6,652.21,1.698]
[1751279876128,1.34534302,652.77,652.21,1.698]
[1751279876328,2.40864914,652.76,652.21,1.698]
[1751279876525,2.40864914,652.75,652.21,1.698]
[1751279876828,2.40864914,652.74,652.21,1.698]
[1751279877126,1.06330612,652.73,652.21,1.698]
[1751279877326,2.40864914,652.72,652.21,1.698]
[1751279877630,2.40864914,652.71,652.21,1.698]
[1751279877929,1.14394002,652.78,652.21,1.698]
[1751279877930,2.40864914,652.7,652.21,1.698]
[1751279878125,1.06330612,652.69,652.21,1.698]
[1751279878329,2.40874214,652.68,652.21,1.698]
[1751279878526,2.40858062,652.67,652.21,1.698]
[1751279878729,2.40858062,652.66,652.21,1.698]
[1751279878930,2.40858062,652.65,652.21,1.698]
[1751279879129,2.40858062,652.64,652.21,1.698]
[1751279879429,2.40858062,652.63,652.21,1.698]
[1751279879726,2.40858062,652.62,652.21,1.698]
[1751279879930,2.40858062,652.61,652.21,1.698]
[1751279880131,2.40858062,652.6,652.21,1.698]
[1751279880333,2.40858062,652.59,652.21,1.698]
[1751279880532,1.06330612,652.58,652.21,1.698]
[1751279880732,1.06330612,652.57,652.21,1.698]
[1751279880927,1.06330612,652.56,652.21,1.698]
[1751279881128,1.06330612,652.55,652.21,1.698]
[1751279881432,1.06330612,652.54,652.21,1.698]
[1751279881632,1.06330612,652.53,652.21,1.698]
[1751279881828,1.06330612,652.52,652.21,1.698]
[1751279882027,1.06330612,652.51,652.21,1.698]
[1751279882232,1.06330612,652.5,652.21,1.698]
[1751279882529,1.06341432,652.49,652.21,1.698]
[1751279882730,1.06341432,652.48,652.21,1.698]
[1751279882932,1.06341432,652.47,652.21,1.698]
[1751279883129,2.2757125,652.83,652.21,1.698]
[1751279883130,1.06341432,652.46,652.21,1.698]
[1751279883334,1.34547638,652.58,652.21,1.698]
[1751279883530,1.06348957,652.57,652.21,1.698]
[1751279883733,1.06348957,652.56,652.21,1.698]
[1751279883930,2.40900256,652.55,652.21,1.698]
[1751279884134,2.40900256,652.54,652.21,1.698]
[1751279884330,2.40900256,652.53,652.21,1.698]
[1751279884634,2.40900256,652.52,652.21,1.698]
[1751279884834,2.40900256,652.51,652.21,1.698]
[1751279885034,1.06348957,652.5,652.21,1.698]
[1751279885237,1.06348957,652.49,652.21,1.698]
[1751279885433,1.06348957,652.48,652.21,1.698]
[1751279885632,1.06348957,652.47,652.21,1.698]
[1751279885842,1.06348957,652.46,652.21,1.698]
[1751279886034,1.06348957,652.45,652.21,1.698]
[1751279886237,1.06348957,652.44,652.21,1.698]
[1751279886437,1.06348957,652.43,652.21,1.698]
[1751279886739,1.06348957,652.42,652.21,1.698]
[1751279887037,1.06348957,652.41,652.21,1.698]
[1751279887240,1.14394002,652.58,652.21,1.698]
[1751279887241,1.06348957,652.4,652.21,1.698]
[1751279887433,1.06348957,652.39,652.21,1.698]
[1751279887634,1.06348957,652.38,652.21,1.698]
[1751279887934,1.06348957,652.37,652.21,1.698]
[1751279888137,1.06348957,652.36,652.21,1.698]
[1751279888340,1.06348957,652.35,652.21,1.698]
[1751279888539,1.06348957,652.34,652.21,1.698]
[1751279888835,1.06348957,652.33,652.2,4.525]
[1751279889033,1.34499175,652.5,652.2,4.525]
[1751279889235,2.40806619,652.49,652.2,4.525]
[1751279889435,2.40806619,652.48,652.2,4.525]
[1751279889638,2.40806619,652.47,652.2,4.525]
[1751279889937,2.40806619,652.46,652.2,4.525]
[1751279890238,2.40806619,652.45,652.2,4.525]
[1751279890436,2.40806619,652.44,652.2,4.525]
[1751279890639,2.40806619,652.43,652.2,4.525]
[1751279890839,1.06307444,652.42,652.2,4.525]
[1751279891037,1.14394002,652.49,652.2,4.525]
[1751279891038,1.06307444,652.41,652.2,4.525]
[1751279891339,1.06307444,652.4,652.2,4.525]
[1751279891538,1.06307444,652.39,652.2,4.525]
[1751279891737,1.06307444,652.38,652.2,4.525]
[1751279891938,1.06307444,652.37,652.2,4.525]
[1751279892136,1.06307444,652.36,652.2,4.525]
[1751279892337,1.06307444,652.35,652.2,4.525]
[1751279892540,1.06307444,652.34,652.2,4.525]
[1751279892740,1.06307444,652.33,652.2,4.525]
[1751279892937,1.06307444,652.32,652.2,4.525]
[1751279893141,1.06307444,652.31,652.2,4.525]
[1751279893337,1.14394002,652.49,652.2,4.525]
[1751279893543,2.40707487,652.48,652.2,4.525]
[1751279893839,2.40707487,652.47,652.2,4.525]
[1751279894143,1.06263681,652.46,652.2,4.525]
[1751279894442,1.06263681,652.45,652.2,4.525]
[1751279894642,1.06263681,652.44,652.2,4.525]
[1751279894838,1.06263681,652.43,652.2,4.525]
[1751279895142,1.06263681,652.42,652.2,4.525]
[1751279895340,1.06263681,652.41,652.2,4.525]
[1751279895539,1.14394002,652.62,652.2,4.525]
[1751279895540,1.06263681,652.4,652.2,4.525]
[1751279895739,1.06263681,652.39,652.2,4.525]
[1751279895938,1.06263681,652.38,652.2,4.525]
[1751279896239,1.06263681,652.37,652.2,4.525]
[1751279896443,1.34431593,652.52,652.2,4.525]
[1751279896738,2.40668674,652.51,652.2,4.525]
[1751279896939,1.14394002,652.63,652.2,4.525]
[1751279896940,1.06237081,652.5,652.2,4.525]
[1751279897136,1.06237081,652.49,652.2,4.525]
[1751279897339,1.06237081,652.48,652.2,4.525]
[1751279897639,1.06237081,652.47,652.2,4.525]
[1751279897839,1.06237081,652.46,652.2,4.525]
[1751279898041,1.06237081,652.45,652.2,4.525]
[1751279898242,1.06237081,652.44,652.2,4.525]
[1751279898542,1.06237081,652.43,652.2,4.525]
[1751279898743,1.06237081,652.42,652.2,4.525]
[1751279898941,1.06237081,652.41,652.2,4.525]
[1751279899143,1.06237081,652.4,652.2,4.525]
[1751279899343,1.06237081,652.39,652.2,4.525]
[1751279899541,1.06237081,652.38,652.2,4.525]
[1751279899743,1.06237081,652.37,652.2,4.525]
[1751279899940,1.06237081,652.36,652.2,4.525]
[1751279900142,1.3435845,652.56,652.2,4.525]
[1751279900344,2.40564925,652.55,652.2,4.525]
[1751279900648,2.90402887,652.54,652.2,4.525]
[1751279900848,2.90402887,652.53,652.2,4.525]
[1751279901048,2.90402887,652.52,652.2,4.525]
[1751279901345,2.40564925,652.51,652.2,2.903]
[1751279901545,2.40564925,652.5,652.2,2.903]
[1751279901743,2.40564925,652.49,652.2,2.903]
[1751279901946,2.40564925,652.48,652.2,2.903]
[1751279902145,2.40564925,652.47,652.2,2.903]
[1751279902348,2.40564925,652.46,652.2,2.903]
[1751279902543,2.40564925,652.45,652.2,2.903]
[1751279902749,2.40564925,652.44,652.2,2.903]
[1751279902944,1.06206475,652.43,652.2,2.903]
[1751279903147,1.06206475,652.42,652.2,2.903]
[1751279903346,1.06206475,652.41,652.2,2.903]
[1751279903646,1.06206475,652.4,652.2,2.903]
[1751279903844,0.49823527,652.57,652.2,2.903]
[1751279903845,1.06206475,652.39,652.2,2.903]
[1751279904048,1.06206475,652.38,652.21,1.733]
[1751279904246,1.06206475,652.37,652.21,1.733]
[1751279904448,1.06206475,652.36,652.21,1.733]
[1751279904649,1.06206475,652.35,652.21,1.733]
[1751279904845,1.06206475,652.34,652.21,1.733]
[1751279905046,1.06206475,652.33,652.21,1.733]
[1751279905251,1.06206475,652.32,652.21,1.733]
[1751279905548,1.06206475,652.31,652.21,1.733]
[1751279905745,1.06206475,652.3,652.21,1.733]
[1751279906049,1.06206475,652.29,652.21,1.733]
[1751279906250,1.34250903,652.52,652.21,1.733]
[1751279906549,2.40343357,652.51,652.21,1.733]
[1751279906846,2.40343357,652.5,652.21,1.733]
[1751279907046,2.40343357,652.49,652.21,1.733]
[1751279907245,2.40343357,652.48,652.21,1.733]
[1751279907448,2.40343357,652.47,652.21,1.733]
[1751279907745,2.40343357,652.46,652.21,1.733]
[1751279907944,2.40343357,652.45,652.21,1.733]
[1751279908245,2.40343357,652.44,652.21,1.733]
[1751279908447,2.40343357,652.43,652.21,1.733]
[1751279908645,1.14394002,652.55,652.21,1.733]
[1751279908646,2.40343357,652.42,652.21,1.733]
[1751279908848,2.40343357,652.41,652.21,1.733]
[1751279909047,1.14394002,652.55,652.21,1.733]
[1751279909048,1.06092454,652.4,652.21,1.733]
[1751279909347,1.06092454,652.39,652.21,1.733]
[1751279909547,1.06092454,652.38,652.21,1.733]
[1751279909753,1.06092454,652.37,652.21,1.733]
[1751279910052,1.06092454,652.36,652.21,1.733]
[1751279910256,1.06092454,652.35,652.21,1.733]
[1751279910452,1.06092454,652.34,652.21,1.733]
[1751279910651,1.06092454,652.33,652.21,1.733]
[1751279910852,3.8123757,653.7,652.21,1.733]
[1751279910853,1.06092454,652.32,652.21,1.733]
[1751279911053,1.06092454,652.31,652.21,1.733]
[1751279911256,1.06092454,652.3,652.21,1.733]
[1751279911457,1.34212179,652.56,652.21,1.733]
[1751279911757,2.40282148,652.55,652.21,1.733]
[1751279911954,1.14394002,652.6,652.21,1.733]
[1751279911955,2.40282148,652.54,652.21,1.733]
[1751279912153,2.40282148,652.53,652.21,1.733]
[1751279912463,2.40282148,652.52,652.21,1.733]
[1751279912662,2.40282148,652.51,652.21,1.733]
[1751279912863,2.40282148,652.5,652.21,1.733]
[1751279913063,2.40282148,652.49,652.21,1.733]
[1751279913259,2.40282148,652.48,652.21,1.733]
[1751279913464,2.40282148,652.47,652.21,1.733]
[1751279913663,2.40282148,652.46,652.21,1.733]
[1751279913864,2.40282148,652.45,652.21,1.733]
[1751279914065,2.40282148,652.44,652.21,1.733]
[1751279914263,2.40282148,652.43,652.21,1.733]
[1751279914466,1.06069969,652.42,652.21,1.733]